[Event "Titled Tuesday Blitz May 30 Early 2023"]
[White "Svane, Rasmus"]
[Black "Kleiman, Jake"]
[WhiteFideId "4657101"]
[BlackFideId "2020041"]
[WhiteElo "2601"]
[BlackElo "2605"]
[Result "1-0"]
[Round "04"]
[TimeControl "180+2"]
[Date "2023.05.30"]
[WhiteClock "0:00:17"]
[BlackClock "0:00:02"]

1. Nf3 {[%clk 0:03:00]}  Nf6 {[%clk 0:03:00]} 2. g3 {[%clk 0:02:58]}  e6 {[%clk 0:03:00]} 3. Bg2 {[%clk 0:02:58]}  d5 {[%clk 0:03:01]} 4. O-O {[%clk 0:02:58]}  b5 {[%clk 0:03:02]} 5. d3 {[%clk 0:02:58]}  Be7 {[%clk 0:03:01]} 6. e4 {[%clk 0:02:55]}  O-O {[%clk 0:02:59]} 7. exd5 {[%clk 0:02:55]}  exd5 {[%clk 0:02:58]} 8. Re1 {[%clk 0:02:52]}  Re8 {[%clk 0:02:55]} 9. Bf4 {[%clk 0:02:49]}  c5 {[%clk 0:02:44]} 10. Nbd2 {[%clk 0:02:49]}  Nc6 {[%clk 0:02:45]} 11. Ne5 {[%clk 0:02:49]}  Bb7 {[%clk 0:02:42]} 12. Ndf3 {[%clk 0:02:39]}  Rc8 {[%clk 0:02:37]} 13. Nxc6 {[%clk 0:02:38]}  Bxc6 {[%clk 0:02:36]} 14. Ne5 {[%clk 0:02:39]}  Ba8 {[%clk 0:02:35]} 15. Bh3 {[%clk 0:02:33]}  Rc7 {[%clk 0:02:31]} 16. Ng4 {[%clk 0:02:32]}  Rc6 {[%clk 0:02:24]} 17. Ne5 {[%clk 0:02:30]}  Rb6 {[%clk 0:02:19]} 18. d4 {[%clk 0:02:21]}  c4 {[%clk 0:02:17]} 19. c3 {[%clk 0:02:08]}  Bb7 {[%clk 0:02:15]} 20. Ng4 {[%clk 0:02:04]}  Bc8 {[%clk 0:02:03]} 21. Nxf6+ {[%clk 0:02:01]}  Bxf6 {[%clk 0:02:04]} 22. Rxe8+ {[%clk 0:01:58]}  Qxe8 {[%clk 0:02:04]} 23. Bxc8 {[%clk 0:01:55]}  Qxc8 {[%clk 0:02:04]} 24. Qf3 {[%clk 0:01:56]}  Qd7 {[%clk 0:01:54]} 25. Kg2 {[%clk 0:01:42]}  Qf5 {[%clk 0:01:44]} 26. g4 {[%clk 0:01:33]}  Qd7 {[%clk 0:01:41]} 27. h3 {[%clk 0:01:31]}  h6 {[%clk 0:01:32]} 28. Re1 {[%clk 0:01:09]}  Ra6 {[%clk 0:01:26]} 29. a3 {[%clk 0:01:07]}  Re6 {[%clk 0:01:25]} 30. Be5 {[%clk 0:01:04]}  Bxe5 {[%clk 0:00:53]} 31. Rxe5 {[%clk 0:00:59]}  Rxe5 {[%clk 0:00:53]} 32. dxe5 {[%clk 0:01:00]}  d4 {[%clk 0:00:53]} 33. Qa8+ {[%clk 0:01:00]}  Kh7 {[%clk 0:00:53]} 34. Qe4+ {[%clk 0:01:00]}  g6 {[%clk 0:00:53]} 35. cxd4 {[%clk 0:00:57]}  a5 {[%clk 0:00:50]} 36. d5 {[%clk 0:00:57]}  Kg7 {[%clk 0:00:42]} 37. e6 {[%clk 0:00:51]}  fxe6 {[%clk 0:00:36]} 38. dxe6 {[%clk 0:00:52]}  Qe7 {[%clk 0:00:32]} 39. Qd4+ {[%clk 0:00:44]}  Kg8 {[%clk 0:00:27]} 40. Qd5 {[%clk 0:00:43]}  Kg7 {[%clk 0:00:23]} 41. Qe5+ {[%clk 0:00:40]}  Kg8 {[%clk 0:00:23]} 42. Qd5 {[%clk 0:00:31]}  Kg7 {[%clk 0:00:22]} 43. f4 {[%clk 0:00:31]}  c3 {[%clk 0:00:09]} 44. bxc3 {[%clk 0:00:18]}  Qxa3 {[%clk 0:00:09]} 45. Qe5+ {[%clk 0:00:16]}  Kg8 {[%clk 0:00:09]} 46. e7 {[%clk 0:00:16]}  Qa2+ {[%clk 0:00:02]} 47. Kg3 {[%clk 0:00:17]} 1-0


[Site "https://www.chess.com"]

[Event "Titled Tuesday Blitz May 30 Early 2023"]
[White "Narayanan, Srinath"]
[Black "Marra, Eduardo da Costa"]
[WhiteFideId "5018420"]
[BlackFideId "2106990"]
[WhiteElo "2438"]
[BlackElo "2252"]
[Result "1-0"]
[Round "04"]
[TimeControl "180+2"]
[Date "2023.05.30"]
[WhiteClock "0:01:28"]
[BlackClock "0:00:16"]

1. Nf3 {[%clk 0:03:00]}  c5 {[%clk 0:02:59]} 2. c4 {[%clk 0:03:01]}  Nc6 {[%clk 0:02:59]} 3. d4 {[%clk 0:03:01]}  cxd4 {[%clk 0:02:59]} 4. Nxd4 {[%clk 0:03:02]}  g6 {[%clk 0:02:58]} 5. g3 {[%clk 0:03:02]}  Bg7 {[%clk 0:02:58]} 6. Nf3 {[%clk 0:03:02]}  d6 {[%clk 0:02:56]} 7. Bg2 {[%clk 0:03:03]}  Nf6 {[%clk 0:02:56]} 8. O-O {[%clk 0:03:03]}  O-O {[%clk 0:02:57]} 9. Nc3 {[%clk 0:03:04]}  Be6 {[%clk 0:02:47]} 10. Nd5 {[%clk 0:03:03]}  Rc8 {[%clk 0:02:43]} 11. Rb1 {[%clk 0:02:59]}  a6 {[%clk 0:02:21]} 12. Be3 {[%clk 0:02:56]}  Bxd5 {[%clk 0:01:50]} 13. cxd5 {[%clk 0:02:56]}  Nb4 {[%clk 0:01:51]} 14. Qb3 {[%clk 0:02:47]}  Nbxd5 {[%clk 0:01:33]} 15. Bd4 {[%clk 0:02:47]}  b5 {[%clk 0:01:31]} 16. e4 {[%clk 0:02:45]}  Nb6 {[%clk 0:01:24]} 17. e5 {[%clk 0:02:45]}  Ne8 {[%clk 0:01:06]} 18. Rfd1 {[%clk 0:02:42]}  Nc4 {[%clk 0:01:04]} 19. Qb4 {[%clk 0:02:35]}  Qa5 {[%clk 0:01:00]} 20. Qxa5 {[%clk 0:02:11]}  Nxa5 {[%clk 0:01:01]} 21. Bh3 {[%clk 0:01:49]}  Rd8 {[%clk 0:00:38]} 22. Bb6 {[%clk 0:01:46]}  Nc6 {[%clk 0:00:33]} 23. Bxd8 {[%clk 0:01:46]}  Nxd8 {[%clk 0:00:34]} 24. Rbc1 {[%clk 0:01:46]}  Ne6 {[%clk 0:00:25]} 25. Bxe6 {[%clk 0:01:41]}  fxe6 {[%clk 0:00:26]} 26. Ng5 {[%clk 0:01:42]}  Bxe5 {[%clk 0:00:24]} 27. Nxe6 {[%clk 0:01:42]}  Rf6 {[%clk 0:00:25]} 28. Ng5 {[%clk 0:01:43]}  Bxb2 {[%clk 0:00:23]} 29. Rc8 {[%clk 0:01:43]}  Rf5 {[%clk 0:00:19]} 30. Rxe8+ {[%clk 0:01:42]}  Kg7 {[%clk 0:00:20]} 31. Ne4 {[%clk 0:01:38]}  Re5 {[%clk 0:00:18]} 32. f3 {[%clk 0:01:36]}  d5 {[%clk 0:00:18]} 33. Nf2 {[%clk 0:01:34]}  Re2 {[%clk 0:00:18]} 34. Rxd5 {[%clk 0:01:30]}  e5 {[%clk 0:00:19]} 35. Rd7+ {[%clk 0:01:28]}  Kf6 {[%clk 0:00:18]} 36. Ne4+ {[%clk 0:01:28]}  Kf5 {[%clk 0:00:16]} 37. Rf7# {[%clk 0:01:28]} 1-0


[Site "https://www.chess.com"]

[Event "Titled Tuesday Blitz May 30 Early 2023"]
[White "Turayev, Shahruh"]
[Black "Terry, Renato"]
[WhiteFideId "14003856"]
[BlackFideId "3803457"]
[WhiteElo "2185"]
[BlackElo "2575"]
[Result "0-1"]
[Round "04"]
[TimeControl "180+2"]
[Date "2023.05.30"]
[WhiteClock "0:00:18"]
[BlackClock "0:00:11"]

1. e4 {[%clk 0:02:59]}  e6 {[%clk 0:03:00]} 2. b3 {[%clk 0:02:58]}  d5 {[%clk 0:03:00]} 3. Bb2 {[%clk 0:02:59]}  Nf6 {[%clk 0:03:00]} 4. Nc3 {[%clk 0:02:59]}  d4 {[%clk 0:02:57]} 5. Nce2 {[%clk 0:02:59]}  e5 {[%clk 0:02:57]} 6. d3 {[%clk 0:02:57]}  Bb4+ {[%clk 0:02:48]} 7. c3 {[%clk 0:02:57]}  dxc3 {[%clk 0:02:49]} 8. Bxc3 {[%clk 0:02:57]}  Nc6 {[%clk 0:02:48]} 9. Qd2 {[%clk 0:02:54]}  Qd6 {[%clk 0:02:40]} 10. g3 {[%clk 0:02:49]}  O-O {[%clk 0:02:33]} 11. Bg2 {[%clk 0:02:49]}  Rd8 {[%clk 0:02:26]} 12. Rd1 {[%clk 0:02:49]}  a5 {[%clk 0:02:19]} 13. Nf3 {[%clk 0:02:45]}  Bg4 {[%clk 0:02:16]} 14. O-O {[%clk 0:02:42]}  Bxf3 {[%clk 0:02:15]} 15. Bxf3 {[%clk 0:02:43]}  Rd7 {[%clk 0:02:03]} 16. Qe3 {[%clk 0:02:23]}  Bxc3 {[%clk 0:02:01]} 17. Nxc3 {[%clk 0:02:24]}  Rad8 {[%clk 0:01:56]} 18. Rd2 {[%clk 0:02:17]}  Nd4 {[%clk 0:01:09]} 19. Ne2 {[%clk 0:02:03]}  c5 {[%clk 0:01:03]} 20. Rc1 {[%clk 0:01:59]}  b6 {[%clk 0:00:59]} 21. Nxd4 {[%clk 0:01:55]}  Qxd4 {[%clk 0:00:59]} 22. Rcd1 {[%clk 0:01:50]}  Qb4 {[%clk 0:00:53]} 23. h4 {[%clk 0:01:41]}  h6 {[%clk 0:00:53]} 24. Kg2 {[%clk 0:01:39]}  Rd6 {[%clk 0:00:53]} 25. Rc2 {[%clk 0:01:33]}  Qd4 {[%clk 0:00:53]} 26. Rcd2 {[%clk 0:01:28]}  Nd7 {[%clk 0:00:53]} 27. Qxd4 {[%clk 0:01:27]}  Rxd4 {[%clk 0:00:53]} 28. Kf1 {[%clk 0:01:28]}  Nb8 {[%clk 0:00:53]} 29. Be2 {[%clk 0:01:25]}  Nc6 {[%clk 0:00:52]} 30. a3 {[%clk 0:01:23]}  g6 {[%clk 0:00:48]} 31. Rc2 {[%clk 0:01:23]}  Kg7 {[%clk 0:00:47]} 32. Rc4 {[%clk 0:01:20]}  R4d6 {[%clk 0:00:44]} 33. Rdc1 {[%clk 0:01:17]}  Nd4 {[%clk 0:00:41]} 34. b4 {[%clk 0:01:16]}  cxb4 {[%clk 0:00:41]} 35. axb4 {[%clk 0:01:17]}  b5 {[%clk 0:00:41]} 36. Rc5 {[%clk 0:01:15]}  Nb3 {[%clk 0:00:41]} 37. bxa5 {[%clk 0:01:13]}  Nxc1 {[%clk 0:00:41]} 38. Rxc1 {[%clk 0:01:13]}  b4 {[%clk 0:00:39]} 39. d4 {[%clk 0:00:59]}  exd4 {[%clk 0:00:39]} 40. Bd3 {[%clk 0:00:59]}  b3 {[%clk 0:00:35]} 41. a6 {[%clk 0:00:59]}  Rb6 {[%clk 0:00:35]} 42. Rb1 {[%clk 0:00:56]}  Rc8 {[%clk 0:00:32]} 43. Ke2 {[%clk 0:00:55]}  Rc5 {[%clk 0:00:32]} 44. f4 {[%clk 0:00:53]}  f6 {[%clk 0:00:30]} 45. Ra1 {[%clk 0:00:49]}  b2 {[%clk 0:00:30]} 46. Ra4 {[%clk 0:00:41]}  Rc8 {[%clk 0:00:20]} 47. Rxd4 {[%clk 0:00:29]}  b1=Q {[%clk 0:00:18]} 48. Rd7+ {[%clk 0:00:30]}  Kg8 {[%clk 0:00:16]} 49. Bxb1 {[%clk 0:00:31]}  Rxb1 {[%clk 0:00:16]} 50. h5 {[%clk 0:00:31]}  gxh5 {[%clk 0:00:16]} 51. Rd6 {[%clk 0:00:26]}  Kf7 {[%clk 0:00:12]} 52. f5 {[%clk 0:00:25]}  Ra1 {[%clk 0:00:12]} 53. Rd7+ {[%clk 0:00:25]}  Kg8 {[%clk 0:00:12]} 54. Rd6 {[%clk 0:00:25]}  Kf7 {[%clk 0:00:12]} 55. Rd7+ {[%clk 0:00:25]}  Ke8 {[%clk 0:00:13]} 56. Rh7 {[%clk 0:00:25]}  Rxa6 {[%clk 0:00:12]} 57. Rxh6 {[%clk 0:00:26]}  Rc3 {[%clk 0:00:12]} 58. Rxh5 {[%clk 0:00:24]}  Ra2+ {[%clk 0:00:12]} 59. Kd1 {[%clk 0:00:25]}  Rxg3 {[%clk 0:00:12]} 60. Rh8+ {[%clk 0:00:25]}  Kd7 {[%clk 0:00:12]} 61. Rh7+ {[%clk 0:00:25]}  Kd6 {[%clk 0:00:12]} 62. Rh1 {[%clk 0:00:24]}  Ra1+ {[%clk 0:00:11]} 63. Ke2 {[%clk 0:00:18]}  Rxh1 {[%clk 0:00:11]} 0-1


[Site "https://www.chess.com"]

[Event "Titled Tuesday Blitz May 30 Early 2023"]
[White "Melian, Juan Sebastian"]
[Black "Kozak, Adam"]
[WhiteFideId "3706575"]
[BlackFideId "753246"]
[WhiteElo "2092"]
[BlackElo "2469"]
[Result "0-1"]
[Round "04"]
[TimeControl "180+2"]
[Date "2023.05.30"]
[WhiteClock "0:00:00"]
[BlackClock "0:00:02"]

1. d4 {[%clk 0:03:00]}  g6 {[%clk 0:02:51]} 2. e4 {[%clk 0:03:00]}  a6 {[%clk 0:02:50]} 3. Nc3 {[%clk 0:02:59]}  Bg7 {[%clk 0:02:51]} 4. Nf3 {[%clk 0:02:57]}  b5 {[%clk 0:02:51]} 5. Be3 {[%clk 0:02:57]}  Bb7 {[%clk 0:02:50]} 6. Bd3 {[%clk 0:02:57]}  Nf6 {[%clk 0:02:48]} 7. e5 {[%clk 0:02:47]}  Nd5 {[%clk 0:02:47]} 8. Nxd5 {[%clk 0:02:45]}  Bxd5 {[%clk 0:02:48]} 9. Qd2 {[%clk 0:02:46]}  d6 {[%clk 0:02:46]} 10. Bh6 {[%clk 0:02:43]}  O-O {[%clk 0:02:46]} 11. Bxg7 {[%clk 0:02:37]}  Kxg7 {[%clk 0:02:47]} 12. Qf4 {[%clk 0:02:37]}  Nc6 {[%clk 0:02:43]} 13. Be4 {[%clk 0:02:30]}  dxe5 {[%clk 0:02:41]} 14. dxe5 {[%clk 0:02:25]}  e6 {[%clk 0:02:20]} 15. O-O-O {[%clk 0:02:21]}  a5 {[%clk 0:01:51]} 16. g4 {[%clk 0:02:12]}  a4 {[%clk 0:01:43]} 17. h4 {[%clk 0:02:01]}  h6 {[%clk 0:01:19]} 18. g5 {[%clk 0:01:43]}  a3 {[%clk 0:01:17]} 19. gxh6+ {[%clk 0:00:45]}  Kh8 {[%clk 0:01:16]} 20. b3 {[%clk 0:00:46]}  Nb4 {[%clk 0:01:13]} 21. Kb1 {[%clk 0:00:44]}  f5 {[%clk 0:01:12]} 22. Bxd5 {[%clk 0:00:17]}  Nxd5 {[%clk 0:01:11]} 23. Qd4 {[%clk 0:00:17]}  b4 {[%clk 0:01:11]} 24. Ka1 {[%clk 0:00:15]}  c5 {[%clk 0:01:11]} 25. Qc4 {[%clk 0:00:13]}  Qe7 {[%clk 0:01:09]} 26. Ng5 {[%clk 0:00:13]}  Rfd8 {[%clk 0:01:07]} 27. Rd3 {[%clk 0:00:13]}  Nc3 {[%clk 0:00:22]} 28. Rhh3 {[%clk 0:00:12]}  Rd5 {[%clk 0:00:20]} 29. Rxd5 {[%clk 0:00:10]}  exd5 {[%clk 0:00:20]} 30. Qf4 {[%clk 0:00:09]}  c4 {[%clk 0:00:15]} 31. Re3 {[%clk 0:00:08]}  cxb3 {[%clk 0:00:14]} 32. axb3 {[%clk 0:00:09]}  Ne4 {[%clk 0:00:09]} 33. e6 {[%clk 0:00:06]}  Qf6+ {[%clk 0:00:09]} 34. c3 {[%clk 0:00:07]}  bxc3 {[%clk 0:00:08]} 35. Qe5 {[%clk 0:00:03]}  Qxe5 {[%clk 0:00:07]} 36. Nf7+ {[%clk 0:00:04]}  Kh7 {[%clk 0:00:07]} 37. Nxe5 {[%clk 0:00:05]}  Kxh6 {[%clk 0:00:05]} 38. e7 {[%clk 0:00:03]}  Re8 {[%clk 0:00:04]} 39. f3 {[%clk 0:00:01]}  c2 {[%clk 0:00:03]} 40. Re1 {[%clk 0:00:00]}  Nf2 {[%clk 0:00:02]} 0-1


[Site "https://www.chess.com"]

[Event "Titled Tuesday Blitz May 30 Early 2023"]
[White "Baghdasaryan, Vahe"]
[Black "Nguyen, Ngoc Truong Son"]
[WhiteFideId "13303139"]
[BlackFideId "12401110"]
[WhiteElo "2216"]
[BlackElo "2556"]
[Result "0-1"]
[Round "04"]
[TimeControl "180+2"]
[Date "2023.05.30"]
[WhiteClock "0:00:03"]
[BlackClock "0:00:55"]

1. e4 {[%clk 0:03:00]}  c5 {[%clk 0:02:58]} 2. Nf3 {[%clk 0:02:58]}  Nc6 {[%clk 0:02:58]} 3. d4 {[%clk 0:02:58]}  cxd4 {[%clk 0:02:59]} 4. Nxd4 {[%clk 0:02:59]}  e6 {[%clk 0:02:59]} 5. Nc3 {[%clk 0:02:59]}  a6 {[%clk 0:02:59]} 6. Be2 {[%clk 0:02:54]}  Qc7 {[%clk 0:02:58]} 7. O-O {[%clk 0:02:53]}  b5 {[%clk 0:02:58]} 8. Nxc6 {[%clk 0:02:51]}  Qxc6 {[%clk 0:02:57]} 9. Re1 {[%clk 0:02:49]}  Bb7 {[%clk 0:02:57]} 10. Bf3 {[%clk 0:02:49]}  Bc5 {[%clk 0:02:55]} 11. Be3 {[%clk 0:02:47]}  Ne7 {[%clk 0:02:54]} 12. Nd5 {[%clk 0:02:35]}  Bxe3 {[%clk 0:02:52]} 13. Rxe3 {[%clk 0:01:48]}  exd5 {[%clk 0:02:25]} 14. exd5 {[%clk 0:01:49]}  Qd6 {[%clk 0:02:25]} 15. Qe2 {[%clk 0:01:49]}  Kf8 {[%clk 0:02:25]} 16. Re1 {[%clk 0:01:48]}  Re8 {[%clk 0:02:21]} 17. a4 {[%clk 0:01:09]}  b4 {[%clk 0:02:17]} 18. c4 {[%clk 0:01:08]}  bxc3 {[%clk 0:02:14]} 19. bxc3 {[%clk 0:01:09]}  h5 {[%clk 0:01:58]} 20. c4 {[%clk 0:01:07]}  Rh6 {[%clk 0:01:54]} 21. Qc2 {[%clk 0:00:44]}  Qc5 {[%clk 0:01:26]} 22. d6 {[%clk 0:00:43]}  Bxf3 {[%clk 0:01:25]} 23. dxe7+ {[%clk 0:00:40]}  Kg8 {[%clk 0:01:25]} 24. Rxf3 {[%clk 0:00:24]}  Rxe7 {[%clk 0:01:12]} 25. Rb1 {[%clk 0:00:15]}  Rb6 {[%clk 0:01:07]} 26. Rd1 {[%clk 0:00:07]}  g6 {[%clk 0:01:03]} 27. h3 {[%clk 0:00:06]}  Rbe6 {[%clk 0:00:58]} 28. Rfd3 {[%clk 0:00:05]}  Re1+ {[%clk 0:00:55]} 29. Rxe1 {[%clk 0:00:05]}  Rxe1+ {[%clk 0:00:56]} 30. Kh2 {[%clk 0:00:06]}  Qe5+ {[%clk 0:00:57]} 31. g3 {[%clk 0:00:04]}  Qe4 {[%clk 0:00:57]} 32. Re3 {[%clk 0:00:03]}  Rh1# {[%clk 0:00:55]} 0-1


[Site "https://www.chess.com"]

[Event "Titled Tuesday Blitz May 30 Early 2023"]
[White "Dragnev, Valentin"]
[Black "Bodnaruk, Anastasia"]
[WhiteFideId "1634852"]
[BlackFideId "4181751"]
[WhiteElo "2487"]
[BlackElo "2304"]
[Result "1-0"]
[Round "04"]
[TimeControl "180+2"]
[Date "2023.05.30"]
[WhiteClock "0:00:06"]
[BlackClock "0:00:00"]

1. d4 {[%clk 0:03:00]}  Nf6 {[%clk 0:02:59]} 2. Bg5 {[%clk 0:02:59]}  d5 {[%clk 0:02:59]} 3. Nd2 {[%clk 0:02:58]}  Nbd7 {[%clk 0:02:58]} 4. e3 {[%clk 0:02:58]}  g6 {[%clk 0:02:59]} 5. Bd3 {[%clk 0:02:57]}  Bg7 {[%clk 0:02:59]} 6. f4 {[%clk 0:02:57]}  c5 {[%clk 0:02:57]} 7. c3 {[%clk 0:02:57]}  O-O {[%clk 0:02:50]} 8. Ngf3 {[%clk 0:02:57]}  b6 {[%clk 0:02:44]} 9. O-O {[%clk 0:02:57]}  Bb7 {[%clk 0:02:43]} 10. Ne5 {[%clk 0:02:58]}  Ne4 {[%clk 0:02:33]} 11. Nxe4 {[%clk 0:02:58]}  dxe4 {[%clk 0:02:33]} 12. Bc4 {[%clk 0:02:58]}  Nxe5 {[%clk 0:02:26]} 13. fxe5 {[%clk 0:02:56]}  Qc7 {[%clk 0:01:49]} 14. Qb3 {[%clk 0:02:49]}  e6 {[%clk 0:01:48]} 15. Rf2 {[%clk 0:02:49]}  cxd4 {[%clk 0:01:30]} 16. exd4 {[%clk 0:02:48]}  h6 {[%clk 0:01:15]} 17. Bf6 {[%clk 0:02:36]}  e3 {[%clk 0:01:05]} 18. Rff1 {[%clk 0:02:34]}  Qc6 {[%clk 0:01:02]} 19. d5 {[%clk 0:02:32]}  exd5 {[%clk 0:01:02]} 20. Bb5 {[%clk 0:02:32]}  Qc5 {[%clk 0:00:55]} 21. Bxg7 {[%clk 0:02:32]}  Kxg7 {[%clk 0:00:54]} 22. Rf4 {[%clk 0:02:02]}  a6 {[%clk 0:00:51]} 23. Bd3 {[%clk 0:01:56]}  Rae8 {[%clk 0:00:48]} 24. Be2 {[%clk 0:01:45]}  Rxe5 {[%clk 0:00:47]} 25. Raf1 {[%clk 0:01:46]}  f5 {[%clk 0:00:45]} 26. Rd4 {[%clk 0:01:45]}  Re4 {[%clk 0:00:35]} 27. Rfd1 {[%clk 0:01:44]}  Rxd4 {[%clk 0:00:34]} 28. Rxd4 {[%clk 0:01:45]}  Re8 {[%clk 0:00:32]} 29. Qa4 {[%clk 0:01:13]}  b5 {[%clk 0:00:28]} 30. Qa5 {[%clk 0:01:13]}  Qd6 {[%clk 0:00:21]} 31. a4 {[%clk 0:01:04]}  bxa4 {[%clk 0:00:20]} 32. Rb4 {[%clk 0:01:00]}  Re7 {[%clk 0:00:19]} 33. Rb6 {[%clk 0:00:55]}  Qe5 {[%clk 0:00:19]} 34. Qb4 {[%clk 0:00:56]}  Bc8 {[%clk 0:00:18]} 35. Qc5 {[%clk 0:00:41]}  Qe4 {[%clk 0:00:16]} 36. h3 {[%clk 0:00:22]}  f4 {[%clk 0:00:16]} 37. Qxc8 {[%clk 0:00:20]}  f3 {[%clk 0:00:04]} 38. Rb8 {[%clk 0:00:14]}  f2+ {[%clk 0:00:01]} 39. Kh1 {[%clk 0:00:12]}  Qb1+ {[%clk 0:00:01]} 40. Kh2 {[%clk 0:00:12]}  Kf6 {[%clk 0:00:02]} 41. Qf8+ {[%clk 0:00:05]}  Rf7 {[%clk 0:00:02]} 42. Qd6+ {[%clk 0:00:06]}  Kg5 {[%clk 0:00:02]} 43. Qe5+ {[%clk 0:00:05]}  Rf5 {[%clk 0:00:02]} 44. Qxe3+ {[%clk 0:00:06]}  Kf6 {[%clk 0:00:02]} 45. Rf8+ {[%clk 0:00:05]}  Kg7 {[%clk 0:00:00]} 46. Qe7+ {[%clk 0:00:06]} 1-0


[Site "https://www.chess.com"]

[Event "Titled Tuesday Blitz May 30 Early 2023"]
[White "Sousa, Andre Ventura"]
[Black "Hayrapetyan, Hovik"]
[WhiteFideId "1917617"]
[BlackFideId "13302639"]
[WhiteElo "2333"]
[BlackElo "2348"]
[Result "0-1"]
[Round "04"]
[TimeControl "180+2"]
[Date "2023.05.30"]
[WhiteClock "0:00:04"]
[BlackClock "0:00:20"]

1. e4 {[%clk 0:03:00]}  c5 {[%clk 0:02:59]} 2. Nf3 {[%clk 0:03:01]}  d6 {[%clk 0:03:00]} 3. Bb5+ {[%clk 0:03:01]}  Nd7 {[%clk 0:03:00]} 4. c3 {[%clk 0:03:01]}  Nf6 {[%clk 0:02:54]} 5. Bd3 {[%clk 0:03:01]}  e6 {[%clk 0:02:49]} 6. O-O {[%clk 0:02:54]}  a6 {[%clk 0:02:49]} 7. Re1 {[%clk 0:02:53]}  b5 {[%clk 0:02:48]} 8. a4 {[%clk 0:02:52]}  c4 {[%clk 0:02:35]} 9. Bf1 {[%clk 0:02:52]}  Bb7 {[%clk 0:02:35]} 10. d3 {[%clk 0:02:49]}  cxd3 {[%clk 0:02:34]} 11. Bxd3 {[%clk 0:02:50]}  Be7 {[%clk 0:02:34]} 12. axb5 {[%clk 0:02:47]}  axb5 {[%clk 0:02:35]} 13. Rxa8 {[%clk 0:02:46]}  Qxa8 {[%clk 0:02:36]} 14. Na3 {[%clk 0:02:45]}  O-O {[%clk 0:02:19]} 15. Bg5 {[%clk 0:02:27]}  Nc5 {[%clk 0:02:15]} 16. Nxb5 {[%clk 0:02:24]}  Nxd3 {[%clk 0:02:12]} 17. Qxd3 {[%clk 0:02:22]}  Bxe4 {[%clk 0:01:59]} 18. Qe2 {[%clk 0:01:45]}  Bxf3 {[%clk 0:01:49]} 19. Qxf3 {[%clk 0:01:46]}  Qxf3 {[%clk 0:01:48]} 20. gxf3 {[%clk 0:01:47]}  Rb8 {[%clk 0:01:47]} 21. c4 {[%clk 0:01:28]}  d5 {[%clk 0:01:44]} 22. b3 {[%clk 0:01:25]}  h6 {[%clk 0:01:43]} 23. Bf4 {[%clk 0:01:22]}  Rc8 {[%clk 0:01:42]} 24. Bd6 {[%clk 0:01:18]}  Bxd6 {[%clk 0:01:36]} 25. Nxd6 {[%clk 0:01:19]}  Rc6 {[%clk 0:01:36]} 26. Nb5 {[%clk 0:01:16]}  dxc4 {[%clk 0:01:36]} 27. Rc1 {[%clk 0:01:17]}  c3 {[%clk 0:01:26]} 28. Rxc3 {[%clk 0:01:13]}  Rb6 {[%clk 0:01:26]} 29. Nd4 {[%clk 0:01:05]}  Nd5 {[%clk 0:01:25]} 30. Rc4 {[%clk 0:00:54]}  g5 {[%clk 0:01:24]} 31. Rc6 {[%clk 0:00:47]}  Rb4 {[%clk 0:01:23]} 32. Rc4 {[%clk 0:00:47]}  Rb8 {[%clk 0:01:22]} 33. Rc5 {[%clk 0:00:39]}  Ra8 {[%clk 0:01:18]} 34. Nc2 {[%clk 0:00:35]}  Nf4 {[%clk 0:01:17]} 35. b4 {[%clk 0:00:30]}  Ra2 {[%clk 0:01:10]} 36. h4 {[%clk 0:00:18]}  gxh4 {[%clk 0:01:09]} 37. Rc4 {[%clk 0:00:18]}  e5 {[%clk 0:00:50]} 38. b5 {[%clk 0:00:18]}  Rb2 {[%clk 0:00:44]} 39. Nb4 {[%clk 0:00:18]}  Nh3+ {[%clk 0:00:20]} 40. Kg2 {[%clk 0:00:17]}  Nxf2 {[%clk 0:00:20]} 41. Kf1 {[%clk 0:00:08]}  Nd1 {[%clk 0:00:19]} 42. b6 {[%clk 0:00:08]}  Ne3+ {[%clk 0:00:19]} 43. Kg1 {[%clk 0:00:04]}  Nxc4 {[%clk 0:00:20]} 0-1


[Site "https://www.chess.com"]

[Event "Titled Tuesday Blitz May 30 Early 2023"]
[White "Degenbaev, Aziz"]
[Black "Baskakov, Egor"]
[WhiteFideId "13802640"]
[BlackFideId "24197866"]
[WhiteElo "2152"]
[BlackElo "2225"]
[Result "1-0"]
[Round "04"]
[TimeControl "180+2"]
[Date "2023.05.30"]
[WhiteClock "0:00:04"]
[BlackClock "0:00:00"]

1. e4 {[%clk 0:03:00]}  c5 {[%clk 0:02:58]} 2. Nf3 {[%clk 0:03:01]}  Nf6 {[%clk 0:02:58]} 3. e5 {[%clk 0:02:49]}  Nd5 {[%clk 0:02:58]} 4. Nc3 {[%clk 0:02:46]}  e6 {[%clk 0:02:58]} 5. Nxd5 {[%clk 0:02:40]}  exd5 {[%clk 0:02:59]} 6. d4 {[%clk 0:02:41]}  Nc6 {[%clk 0:03:00]} 7. Bd3 {[%clk 0:02:31]}  c4 {[%clk 0:02:58]} 8. Be2 {[%clk 0:02:26]}  d6 {[%clk 0:02:59]} 9. O-O {[%clk 0:02:26]}  Be7 {[%clk 0:02:58]} 10. b3 {[%clk 0:02:21]}  c3 {[%clk 0:02:53]} 11. Qd3 {[%clk 0:02:11]}  dxe5 {[%clk 0:02:51]} 12. Nxe5 {[%clk 0:02:08]}  Qa5 {[%clk 0:02:42]} 13. Bf3 {[%clk 0:01:53]}  O-O {[%clk 0:02:38]} 14. Re1 {[%clk 0:01:50]}  Be6 {[%clk 0:02:31]} 15. Nxc6 {[%clk 0:01:49]}  bxc6 {[%clk 0:02:32]} 16. Bf4 {[%clk 0:01:45]}  Rad8 {[%clk 0:02:28]} 17. Re3 {[%clk 0:01:42]}  c5 {[%clk 0:02:21]} 18. Be5 {[%clk 0:01:31]}  c4 {[%clk 0:02:15]} 19. Qxc3 {[%clk 0:01:28]}  Bb4 {[%clk 0:02:14]} 20. Qb2 {[%clk 0:01:27]}  Bd2 {[%clk 0:02:13]} 21. b4 {[%clk 0:01:19]}  c3 {[%clk 0:01:59]} 22. Qb3 {[%clk 0:01:14]}  Qb6 {[%clk 0:01:55]} 23. Re2 {[%clk 0:01:13]}  Bf5 {[%clk 0:01:37]} 24. Bxd5 {[%clk 0:01:05]}  Bxc2 {[%clk 0:01:28]} 25. Bxf7+ {[%clk 0:00:53]}  Rxf7 {[%clk 0:01:29]} 26. Qxc2 {[%clk 0:00:54]}  Qxb4 {[%clk 0:01:29]} 27. Rb1 {[%clk 0:00:46]}  Qa5 {[%clk 0:01:17]} 28. Re4 {[%clk 0:00:39]}  Qd5 {[%clk 0:01:12]} 29. Rh4 {[%clk 0:00:36]}  h6 {[%clk 0:00:58]} 30. Rg4 {[%clk 0:00:36]}  Rdf8 {[%clk 0:00:42]} 31. Qg6 {[%clk 0:00:28]}  Bg5 {[%clk 0:00:28]} 32. h4 {[%clk 0:00:13]}  c2 {[%clk 0:00:26]} 33. Qxc2 {[%clk 0:00:12]}  Rxf2 {[%clk 0:00:26]} 34. Qg6 {[%clk 0:00:05]}  Qd6 {[%clk 0:00:00]} 35. Qxd6 {[%clk 0:00:04]} 1-0


[Site "https://www.chess.com"]